fUSD/lending_fUSD_20240119
["ID","MTS","AMOUNT","RATE_DAILY","PERIOD"]
[312152024,1705669897284,-500.0,0.00023561,2]
[312152025,1705669897294,-500.0,0.00023561,2]
[312152026,1705669897304,-500.0,0.00023561,2]
[312152027,1705669897316,-558.96,0.00023561,2]
[312152028,1705669897327,-767.26,0.00023561,2]
[312152029,1705669897337,-671.71,0.00023561,2]
[312152030,1705669897348,-500.0,0.00023561,2]
[312152031,1705669897358,-500.0,0.00023561,2]
[312152032,1705669897370,-500.0,0.00023561,2]
[312152033,1705669897380,-545.37,0.00023561,2]
[312152034,1705669897391,-500.0,0.00023561,2]
[312152035,1705669897403,-698.53,0.00023561,2]
[312152036,1705669897413,-500.0,0.00023561,2]
[312152037,1705669897423,-500.0,0.00023561,2]
[312152038,1705669897434,-790.21,0.00023561,2]
[312152039,1705669897444,-703.41,0.00023561,2]
[312152040,1705669897455,-500.0,0.00023561,2]
[312152041,1705669897466,-500.0,0.00023561,2]
[312152042,1705669897476,-895.32,0.00023561,2]
[312152043,1705669897486,-500.0,0.00023561,2]
[312152044,1705669897497,-500.0,0.00023561,2]
[312152045,1705669897508,-571.69,0.00023561,2]
[312152046,1705669897518,-647.03,0.00023561,2]
[312152047,1705669897529,-500.0,0.00023561,2]
[312152048,1705669897539,-500.0,0.00023561,2]
[312152049,1705669897549,-1927.09,0.00023561,2]
[312152050,1705669897560,-711.44,0.00023561,2]
[312152051,1705669897570,-500.0,0.00023561,2]
[312152052,1705669897581,-739.94,0.00023561,2]
[312152053,1705669897591,-500.0,0.00023561,2]
[312152054,1705669897602,-1124.59,0.00023561,2]
[312152055,1705669897613,-500.0,0.00023561,2]
[312152056,1705669897623,-500.0,0.00023561,2]
[312152057,1705669897634,-882.8,0.00023561,2]
[312152058,1705669897645,-664.41,0.00023561,2]
[312152059,1705669897655,-507.69,0.00023561,2]
[312152060,1705669897666,-883.64,0.00023561,2]
[312152061,1705669897676,-500.0,0.00023561,2]
[312152062,1705669897687,-1919.81,0.00023561,2]
[312152063,1705669897697,-899.16,0.00023561,2]
[312152064,1705669897707,-744.37,0.00023561,2]
[312152065,1705669897717,-500.0,0.00023561,2]
[312152066,1705669897727,-500.0,0.00023561,2]
[312152067,1705669897736,-648.21,0.00023561,2]
[312152068,1705669897746,-1272.95,0.00023561,2]
[312152069,1705669897757,-902.19,0.00023561,2]
[312152070,1705669897767,-500.0,0.00023561,2]
[312152071,1705669897777,-500.0,0.00023561,2]
[312152072,1705669897790,-500.0,0.00023561,2]
[312152073,1705669897800,-1231.59,0.00023561,2]
[312152074,1705669897810,-648.29,0.00023561,2]
[312152075,1705669897819,-500.0,0.00023561,2]
[312152076,1705669897830,-928.06,0.00023561,2]
[312152077,1705669897840,-500.0,0.00023561,2]
[312152078,1705669897853,-1262.81,0.00023561,2]
[312152079,1705669897865,-608.03,0.00023561,2]
[312152080,1705669897876,-500.0,0.00023561,2]
[312152081,1705669897886,-500.0,0.00023561,2]
[312152082,1705669897896,-716.12,0.00023561,2]
[312152083,1705669897906,-563.41,0.00023561,2]
[312152084,1705669897917,-584.47824422,0.00023561,2]
[312152085,1705669897927,-500.0,0.00023561,2]
[312152086,1705669897937,-903.17,0.00023561,2]
[312152087,1705669897948,-696.7,0.00023561,2]
[312152088,1705669897958,-1064.15,0.00023561,2]
[312152089,1705669897969,-575.26,0.00023561,2]
[312152090,1705669897979,-539.33,0.00023561,2]
[312152091,1705669897989,-500.34,0.00023561,2]
[312152092,1705669897999,-542.26,0.00023561,2]
[312152093,1705669898009,-2012.98,0.00023561,2]
[312152094,1705669898019,-856.21,0.00023561,2]
[312152095,1705669898030,-684.1,0.00023561,2]
[312152096,1705669898041,-500.0,0.00023561,2]
[312152097,1705669898050,-515.06,0.00023561,2]
[312152098,1705669898060,-814.87,0.00023561,2]
[312152099,1705669898070,-500.0,0.00023561,2]
[312152100,1705669898080,-500.0,0.00023561,2]
[312152101,1705669898090,-500.0,0.00023561,2]
[312152102,1705669898100,-500.0,0.00023561,2]
[312152103,1705669898110,-718.46,0.00023561,2]
[312152104,1705669898121,-500.0,0.00023561,2]
[312152105,1705669898131,-500.0,0.00023561,2]
[312152106,1705669898141,-1408.02,0.00023561,2]
[312152107,1705669898152,-500.0,0.00023561,2]
[312152108,1705669898162,-500.0,0.00023561,2]
[312152109,1705669898173,-500.0,0.00023561,2]
[312152110,1705669898183,-500.0,0.00023561,2]
[312152111,1705669898193,-546.65,0.00023561,2]
[312152112,1705669898203,-841.35,0.00023561,2]
[312152113,1705669898213,-770.59,0.00023561,2]
[312152114,1705669898223,-733.89,0.00023561,2]
[312152115,1705669898233,-769.83,0.00023561,2]
[312152116,1705669898243,-926.17,0.00023561,2]
[312152117,1705669898253,-500.0,0.00023561,2]
[312152118,1705669898263,-680.95,0.00023561,2]
[312152119,1705669898274,-500.0,0.00023561,2]
[312152120,1705669898284,-500.0,0.00023561,2]
[312152121,1705669898293,-622.1,0.00023561,2]
[312152122,1705669898303,-157.34403312,0.00023561,2]
[312152123,1705669898313,-500.0,0.00023561,2]
[312152124,1705669898323,-500.0,0.00023561,2]
[312152125,1705669898333,-500.0,0.00023561,2]
[312152126,1705669898343,-852.32,0.00023561,2]
[312152127,1705669898353,-541.18,0.00023561,2]
[312152128,1705669898363,-774.53,0.00023561,2]
[312152129,1705669898374,-623.89,0.00023561,2]
[312152130,1705669898384,-910.14,0.00023561,2]
[312152131,1705669898394,-500.0,0.00023561,2]
[312152132,1705669898404,-500.0,0.00023561,2]
[312152133,1705669898414,-500.0,0.00023561,2]
[312152134,1705669898424,-918.52,0.00023561,2]
[312152135,1705669898434,-1225.46,0.00023561,2]
[312152136,1705669898444,-1110.62,0.00023561,2]
[312152137,1705669898454,-500.0,0.00023561,2]
[312152138,1705669898464,-722.75,0.00023561,2]
[312152139,1705669898474,-681.27,0.00023561,2]
[312152140,1705669898484,-720.2,0.00023561,2]
[312152141,1705669898493,-1281.21,0.00023561,2]
[312152142,1705669898503,-960.8,0.00023561,2]
[312152143,1705669898513,-1200.27,0.00023561,2]
[312152144,1705669898523,-500.0,0.00023561,2]
[312152145,1705669898534,-996.2,0.00023561,2]
[312152146,1705669898544,-500.0,0.00023561,2]
[312152147,1705669898553,-717.41,0.00023561,2]
[312152148,1705669898563,-733.48,0.00023561,2]
[312152149,1705669898574,-500.0,0.00023561,2]
[312152150,1705669898584,-500.0,0.00023561,2]
[312152151,1705669898594,-567.28,0.00023561,2]
[312152152,1705669898603,-500.0,0.00023561,2]
[312152153,1705669898613,-544.36,0.00023561,2]
[312152154,1705669898623,-500.0,0.00023561,2]
[312152155,1705669898633,-500.0,0.00023561,2]
[312152156,1705669898643,-500.0,0.00023561,2]
[312152157,1705669898653,-500.0,0.00023561,2]
[312152158,1705669898663,-508.81,0.00023561,2]
[312152159,1705669898673,-500.0,0.00023561,2]
[312152160,1705669898682,-500.0,0.00023561,2]
[312152161,1705669898692,-500.0,0.00023561,2]
[312152162,1705669898703,-685.86,0.00023561,2]
[312152163,1705669898714,-500.0,0.00023561,2]
[312152164,1705669898725,-864.15,0.00023561,2]
[312152165,1705669898734,-500.0,0.00023561,2]
[312152166,1705669898744,-502.08,0.00023561,2]
[312152167,1705669898755,-504.94,0.00023561,2]
[312152168,1705669898765,-854.99,0.00023561,2]
[312152169,1705669898775,-606.04,0.00023561,2]
[312152170,1705669898785,-851.01,0.00023561,2]
[312152171,1705669898798,-571.27,0.00023561,2]
[312152172,1705669898807,-500.0,0.00023561,2]
[312152173,1705669898818,-1336.55,0.00023561,2]
[312152174,1705669898828,-500.0,0.00023561,2]
[312152175,1705669898838,-500.0,0.00023561,2]
[312152176,1705669898849,-500.0,0.00023561,2]
[312152177,1705669898859,-953.61,0.00023561,2]
[312152178,1705669898869,-536.63,0.00023561,2]
[312152179,1705669898881,-500.0,0.00023561,2]
[312152180,1705669898892,-770.79,0.00023561,2]
[312152181,1705669898902,-662.32,0.00023561,2]
[312152182,1705669898911,-811.51,0.00023561,2]
[312152183,1705669898922,-500.0,0.00023561,2]
[312152184,1705669898932,-500.0,0.00023561,2]
[312152185,1705669898942,-845.2,0.00023561,2]
[312152186,1705669898952,-500.0,0.00023561,2]
[312152187,1705669898962,-788.16,0.00023561,2]
[312152188,1705669898971,-653.02,0.00023561,2]
[312152189,1705669898981,-214.67372917,0.00023561,2]
[312152190,1705669898990,-1258.44,0.00023561,2]
[312152191,1705669899000,-500.0,0.00023561,2]
[312152192,1705669899010,-500.0,0.00023561,2]
[312152193,1705669899021,-500.0,0.00023561,2]
[312152194,1705669899031,-500.0,0.00023561,2]
[312152195,1705669899042,-500.0,0.00023561,2]
[312152196,1705669899052,-500.0,0.00023561,2]
[312152197,1705669899061,-640.03,0.00023561,2]
[312152198,1705669899072,-769.35,0.00023561,2]
[312152199,1705669899082,-570.39,0.00023561,2]
[312152200,1705669899091,-723.58,0.00023561,2]
[312152201,1705669899102,-1088.57,0.00023561,2]
[312152202,1705669899112,-1400.81,0.00023561,2]
[312152203,1705669899122,-500.0,0.00023561,2]
[312152204,1705669899134,-613.93,0.00023561,2]
[312152205,1705669899143,-500.0,0.00023561,2]
[312152206,1705669899153,-500.0,0.00023561,2]
[312152207,1705669899163,-749.16,0.00023561,2]
[312152208,1705669899173,-739.73,0.00023561,2]
[312152209,1705669899183,-500.0,0.00023561,2]
[312152210,1705669899193,-500.0,0.00023561,2]
[312152211,1705669899204,-1591.86,0.00023561,2]
[312152212,1705669899214,-500.0,0.00023561,2]
[312152213,1705669899223,-500.0,0.00023561,2]
[312152214,1705669899234,-520.91,0.00023561,2]
[312152215,1705669899244,-500.0,0.00023561,2]
[312152216,1705669899254,-556.82,0.00023561,2]
[312152217,1705669899264,-500.0,0.00023561,2]
[312152218,1705669899274,-500.0,0.00023561,2]
[312152219,1705669899284,-657.02,0.00023561,2]
[312152220,1705669899294,-903.89,0.00023561,2]
[312152221,1705669899304,-1000.86,0.00023561,2]
[312152222,1705669899315,-619.43,0.00023561,2]
[312152223,1705669899325,-759.91,0.00023561,2]
[312152224,1705669899335,-549.59,0.00023561,2]
[312152225,1705669899345,-500.0,0.00023561,2]
[312152226,1705669899355,-754.71,0.00023561,2]
[312152227,1705669899365,-500.0,0.00023561,2]
[312152228,1705669899376,-500.0,0.00023561,2]
[312152229,1705669899387,-1295.82,0.00023561,2]
[312152230,1705669899397,-500.0,0.00023561,7]
[312152231,1705669899408,-500.0,0.00023561,2]
[312152232,1705669899418,-536.32,0.00023561,2]
[312152233,1705669899428,-697.99,0.00023561,2]
[312152234,1705669899438,-637.25,0.00023561,2]
[312152235,1705669899448,-585.76,0.00023561,2]
[312152236,1705669899458,-971.36,0.00023561,2]
[312152237,1705669899468,-500.0,0.00023561,2]
[312152238,1705669899479,-508.57,0.00023561,2]
[312152239,1705669899489,-500.0,0.00023561,2]
[312152240,1705669899499,-516.49,0.00023561,2]
[312152241,1705669899509,-517.047239,0.00023561,2]
[312152242,1705669899519,-674.4,0.00023561,2]
[312152243,1705669899529,-1174.25,0.00023561,2]
[312152244,1705669899539,-500.0,0.00023561,2]
[312152245,1705669899549,-2577.21,0.00023561,2]
[312152246,1705669899559,-500.0,0.00023561,2]
[312152247,1705669899569,-551.89,0.00023561,2]
[312152248,1705669899579,-1004.34,0.00023561,2]
[312152249,1705669899589,-214.26083957,0.00023561,2]
[312152250,1705669899599,-500.0,0.00023561,2]
[312152251,1705669899609,-500.0,0.00023561,2]
[312152252,1705669899620,-595.37,0.00023561,2]
[312152253,1705669899630,-500.0,0.00023561,2]
[312152254,1705669899640,-975.94,0.00023561,2]
[312152255,1705669899650,-1384.81,0.00023561,2]
[312152256,1705669899660,-500.0,0.00023561,2]
[312152257,1705669899670,-300.0,0.00023561,2]
[312152258,1705669899680,-2155.6,0.00023561,2]
[312152259,1705669899690,-500.0,0.00023561,2]
[312152260,1705669899700,-607.66,0.00023561,2]
[312152261,1705669899710,-500.0,0.00023561,2]
[312152262,1705669899720,-500.0,0.00023561,2]
[312152263,1705669899730,-993.96,0.00023561,2]
[312152264,1705669899740,-500.0,0.00023561,2]
[312152265,1705669899750,-518.01753093,0.00023561,2]
[312152266,1705669899759,-500.0,0.00023561,2]
[312152267,1705669899769,-1491.73,0.00023561,2]
[312152268,1705669899778,-500.0,0.00023561,2]
[312152269,1705669899884,-500.0,0.00023561,2]
[312152270,1705669899894,-500.0,0.00023561,2]
[312152271,1705669899903,-2597.14,0.00023561,2]
[312152272,1705669899914,-884.11,0.00023561,2]
[312152273,1705669899923,-500.0,0.00023561,2]
[312152274,1705669899932,-702.17,0.00023561,2]
[312152275,1705669899942,-500.0,0.00023561,2]
[312152276,1705669899951,-418.51631339,0.00023561,2]
[312152277,1705669899960,-1278.53,0.00023561,2]
[312152278,1705669899970,-509.99,0.00023561,2]
[312152279,1705669899979,-1304.44,0.00023561,2]
[312152280,1705669899989,-644.49,0.00023561,2]
[312152281,1705669899998,-4136.35,0.00023561,2]
[312152282,1705669900007,-756.21,0.00023561,2]
[312152283,1705669900017,-500.0,0.00023561,2]
[312152284,1705669900027,-1691.78,0.00023561,2]
[312152285,1705669900037,-957.56,0.00023561,2]
[312152286,1705669900046,-500.0,0.00023561,2]
[312152287,1705669900055,-500.0,0.00023561,2]
[312152288,1705669900065,-500.0,0.00023561,2]
[312152289,1705669900075,-500.0,0.00023561,2]
[312152290,1705669900085,-561.8,0.00023561,2]
[312152291,1705669900095,-1210.49,0.00023561,2]
[312152292,1705669900104,-557.2,0.00023561,2]
[312152293,1705669900114,-500.0,0.00023561,2]
[312152294,1705669900123,-1263.43,0.00023561,2]
[312152295,1705669900132,-970.19,0.00023561,2]
[312152296,1705669900142,-3690.4,0.00023561,2]
[312152297,1705669900151,-442.52423539,0.00023561,2]
[312152298,1705669900162,-790.63,0.00023561,2]
[312152299,1705669900172,-500.0,0.00023561,2]
[312152300,1705669900183,-500.0,0.00023561,2]
[312152301,1705669900193,-500.0,0.00023561,2]
[312152302,1705669900202,-702.42,0.00023561,2]
[312152303,1705669900213,-3924.47,0.00023561,2]
[312152304,1705669900224,-500.0,0.00023561,2]
[312152305,1705669900234,-598.21,0.00023561,2]
[312152306,1705669900244,-973.67,0.00023561,2]
[312152307,1705669900254,-1520.21,0.00023561,2]
[312152308,1705669900265,-500.0,0.00023561,2]
[312152309,1705669900274,-562.92,0.00023561,2]
[312152310,1705669900283,-500.0,0.00023561,2]
[312152311,1705669900294,-1299.47,0.00023561,2]
[312152312,1705669900304,-4002.65,0.00023561,2]
[312152313,1705669900314,-1988.16,0.00023561,5]
[312152314,1705669900324,-687.96,0.00023561,2]
[312152315,1705669900334,-821.93,0.00023561,2]
[312152316,1705669900344,-1689.55,0.00023561,2]
[312152317,1705669900353,-500.0,0.00023561,2]
[312152318,1705669900364,-574.45,0.00023561,2]
[312152319,1705669900375,-2788.01,0.00023561,2]
[312152320,1705669900385,-621.19,0.00023561,2]
[312152321,1705669900395,-500.0,0.00023561,2]
[312152322,1705669900406,-1406.79,0.00023561,2]
[312152323,1705669900416,-500.0,0.00023561,2]
[312152324,1705669900426,-1676.68,0.00023561,2]
[312152325,1705669900437,-500.0,0.00023561,2]
[312152326,1705669900447,-722.53,0.00023561,2]
[312152327,1705669900457,-528.2,0.00023561,2]
[312152328,1705669900467,-500.0,0.00023561,2]
[312152329,1705669900477,-1258.05,0.00023561,2]
[312152330,1705669900488,-500.0,0.00023561,2]
[312152331,1705669900498,-536.55,0.00023561,2]
[312152332,1705669900508,-591.46,0.00023561,2]
[312152333,1705669900518,-1526.19,0.00023561,2]
[312152334,1705669900528,-1185.94,0.00023561,2]
[312152335,1705669900538,-3581.47,0.00023561,2]
[312152336,1705669900547,-500.0,0.00023561,2]
[312152337,1705669900557,-12146.1,0.00023561,2]
[312152338,1705669900567,-2612.2,0.00023561,2]
[312152339,1705669900577,-1237.18,0.00023561,2]
[312152340,1705669900587,-1056.03,0.00023561,2]
[312152341,1705669900596,-858.97,0.00023561,2]
[312152342,1705669900607,-656.1,0.00023561,2]
[312152343,1705669900616,-2469.05,0.00023561,2]
[312152344,1705669900627,-500.0,0.00023561,2]
[312152345,1705669900637,-9252.78,0.00023561,2]
[312152346,1705669900647,-602.84,0.00023561,2]
[312152347,1705669900657,-500.0,0.00023561,2]
[312152348,1705669900666,-15248.18,0.00023561,2]
[312152349,1705669900676,-2574.37,0.00023561,2]
[312152350,1705669900686,-767.02,0.00023561,2]
[312152351,1705669900696,-1439.62,0.00023561,2]
[312152352,1705669900706,-577.79,0.00023561,2]
[312152353,1705669900716,-543.58,0.00023561,2]
[312152354,1705669900725,-1848.98,0.00023561,2]
[312152355,1705669900735,-1228.0,0.00023561,2]
[312152356,1705669900745,-8551.06,0.00023561,2]
[312152357,1705669900755,-2267.31,0.00023561,2]
[312152358,1705669900765,-335.59,0.00023561,2]
[312152359,1705669900775,-574.86,0.00023561,2]
[312152360,1705669900785,-3257.42,0.00023561,2]
[312152361,1705669900800,-894.19,0.00023561,2]
[312152362,1705669900809,-500.0,0.00023561,2]
[312152363,1705669900819,-585.55,0.00023561,2]
[312152364,1705669900828,-2231.87,0.00023561,2]
[312152365,1705669900838,-5684.2,0.00023561,2]
[312152366,1705669900847,-1414.02,0.00023561,2]
[312152367,1705669900857,-939.86,0.00023561,2]
[312152368,1705669900867,-500.0,0.00023561,2]
[312152369,1705669900878,-580.2,0.00023561,2]
[312152370,1705669900887,-500.0,0.00023561,2]
[312152371,1705669900897,-2102.76,0.00023561,2]
[312152372,1705669900906,-500.0,0.00023561,2]
[312152373,1705669900916,-4658.46,0.00023561,2]
[312152374,1705669900925,-1984.44,0.00023561,2]
[312152375,1705669900935,-2207.47,0.00023561,2]
[312152376,1705669900944,-500.0,0.00023561,2]
[312152377,1705669900954,-3439.18,0.00023561,2]
[312152378,1705669900964,-1931.43,0.00023561,2]
[312152379,1705669900974,-500.0,0.00023561,2]
[312152380,1705669900984,-639.82,0.00023561,2]
[312152381,1705669900993,-500.0,0.00023561,2]
[312152382,1705669901003,-1100.23,0.00023561,2]
[312152383,1705669901013,-500.0,0.00023561,2]
[312152384,1705669901023,-644.68,0.00023561,2]
[312152385,1705669901033,-500.0,0.00023561,2]
[312152386,1705669901042,-500.0,0.00023561,2]
[312152387,1705669901052,-500.0,0.00023561,2]
[312152388,1705669901062,-1956.81,0.00023561,2]
[312152389,1705669901071,-759.77,0.00023561,2]
[312152390,1705669901081,-500.0,0.00023561,2]
[312152391,1705669901091,-986.14,0.00023561,2]
[312152392,1705669901100,-534.94,0.00023561,2]
[312152393,1705669901110,-686.98,0.00023561,2]
[312152394,1705669901120,-549.98,0.00023561,2]
[312152395,1705669901129,-916.9,0.00023561,2]
[312152396,1705669901139,-869.67,0.00023561,2]
[312152397,1705669901149,-7071.93,0.00023561,2]
[312152398,1705669901158,-2963.64,0.00023561,2]
[312152399,1705669901168,-1215.68,0.00023561,2]
[312152400,1705669901177,-1525.76,0.00023561,2]
[312152401,1705669901187,-621.36,0.00023561,2]
[312152402,1705669901198,-500.0,0.00023561,2]
[312152403,1705669901207,-2140.94,0.00023561,2]
[312152404,1705669901217,-710.71,0.00023561,2]
[312152405,1705669901226,-842.67,0.00023561,2]
[312152406,1705669901235,-549.3,0.00023561,2]
[312152407,1705669901244,-4445.96,0.00023561,2]
[312152408,1705669901254,-4442.84,0.00023561,2]
[312152409,1705669901264,-3252.64,0.00023561,2]
[312152410,1705669901273,-9432.03,0.00023561,2]
[312152411,1705669901283,-1494.52,0.00023561,2]
[312152412,1705669901292,-2305.27,0.00023561,2]
[312152413,1705669901302,-1994.22,0.00023561,2]
[312152414,1705669901311,-785.42,0.00023561,2]
[312152415,1705669901321,-544.14,0.00023561,2]
[312152416,1705669901330,-15331.08,0.00023561,2]
[312152417,1705669901339,-37740.3,0.00023561,2]
[312152418,1705669901349,-575.23,0.00023561,2]
[312152419,1705669901359,-3240.46,0.00023561,2]
[312152420,1705669901369,-500.0,0.00023561,2]
[312152421,1705669901379,-664.75,0.00023561,2]
[312152422,1705669901389,-500.0,0.00023561,2]
[312152423,1705669901400,-500.0,0.00023561,2]
[312152424,1705669901410,-500.0,0.00023561,2]
[312152425,1705669901420,-500.0,0.00023561,2]
[312152426,1705669901430,-500.0,0.00023561,2]
[312152427,1705669901440,-1196.75,0.00023561,2]
[312152428,1705669901450,-500.0,0.00023561,2]
[312152429,1705669901460,-1846.5,0.00023561,2]
[312152430,1705669901470,-665.6,0.00023561,2]
[312152431,1705669901480,-2233.52,0.00023561,2]
[312152432,1705669901490,-2652.58,0.00023561,2]
[312152433,1705669901500,-538.09,0.00023561,2]
[312152434,1705669901510,-500.0,0.00023561,2]
[312152435,1705669901520,-1124.95,0.00023561,2]
[312152436,1705669901530,-808.35,0.00023561,2]
[312152437,1705669901539,-573.95,0.00023561,2]
[312152438,1705669901550,-1635.99,0.00023561,2]
[312152439,1705669901560,-3944.13,0.00023561,2]
[312152440,1705669901571,-750.32,0.00023561,2]
[312152441,1705669901581,-1281.81,0.00023561,2]
[312152442,1705669901591,-4547.59,0.00023561,2]
[312152443,1705669901600,-500.0,0.00023561,2]
[312152444,1705669901610,-8425.91,0.00023561,2]
[312152445,1705669901621,-500.0,0.00023561,2]
[312152446,1705669901631,-506.59,0.00023561,2]
[312152447,1705669901642,-754.61,0.00023561,2]
[312152448,1705669901652,-1705.42,0.00023561,2]
[312152449,1705669901662,-591.74,0.00023561,2]
[312152450,1705669901672,-780.91,0.00023561,2]
[312152451,1705669901682,-574.32,0.00023561,2]
[312152452,1705669901691,-1313.23,0.00023561,2]
[312152453,1705669901701,-500.0,0.00023561,2]
[312152454,1705669901710,-2028.69,0.00023561,2]
[312152455,1705669901719,-500.0,0.00023561,2]
[312152456,1705669901729,-633.91,0.00023561,2]
[312152457,1705669901739,-9076.22,0.00023561,2]
[312152458,1705669901751,-500.0,0.00023561,2]
[312152459,1705669901761,-924.14,0.00023561,2]
[312152460,1705669901771,-526.59,0.00023561,2]
[312152461,1705669901781,-2029.72,0.00023561,2]
[312152462,1705669901791,-532.27376122,0.00023561,2]
[312152463,1705669901802,-500.0,0.00023561,2]
[312152464,1705669901812,-826.71,0.00023561,2]
[312152465,1705669901821,-1960.9,0.00023561,2]
[312152466,1705669901832,-981.27,0.00023561,2]
[312152467,1705669901842,-500.0,0.00023561,2]
[312152468,1705669901851,-4783.55,0.00023561,2]
[312152469,1705669901861,-835.31,0.00023561,2]
[312152470,1705669901872,-5207.41,0.00023561,2]
[312152471,1705669901882,-1577.31,0.00023561,2]
[312152472,1705669901892,-500.0,0.00023561,2]
[312152473,1705669901902,-3855.72,0.00023561,2]
[312152474,1705669901913,-685.58,0.00023561,2]
[312152475,1705669901923,-1179.28,0.00023561,2]
[312152476,1705669901933,-793.67,0.00023561,2]
[312152477,1705669901943,-813.09,0.00023561,2]
[312152478,1705669901953,-583.17,0.00023561,2]
[312152479,1705669901963,-2276.82,0.00023561,2]
[312152480,1705669901973,-3177.97,0.00023561,2]
[312152481,1705669901983,-3710.39,0.00023561,2]
[312152482,1705669901993,-500.0,0.00023561,2]
[312152483,1705669902003,-500.0,0.00023561,2]
[312152484,1705669902012,-660.03,0.00023561,2]
[312152485,1705669902023,-550.62,0.00023561,2]
[312152486,1705669902033,-500.0,0.00023561,2]
[312152487,1705669902043,-2628.92,0.00023561,2]
[312152488,1705669902052,-1034.13,0.00023561,2]
[312152489,1705669902062,-638.69,0.00023561,2]
[312152490,1705669902072,-2000.88,0.00023561,2]
[312152491,1705669902082,-19369.32,0.00023561,2]
[312152492,1705669902091,-2148.61,0.00023561,2]
[312152493,1705669902101,-500.0,0.00023561,2]
[312152494,1705669902110,-25482.51,0.00023561,2]
[312152495,1705669902120,-1717.53,0.00023561,2]
[312152496,1705669902130,-500.0,0.00023561,2]
[312152497,1705669902141,-1264.98,0.00023561,2]
[312152498,1705669902151,-500.0,0.00023561,2]
[312152499,1705669902161,-500.0,0.00023561,2]
[312152500,1705669902170,-746.64,0.00023561,2]
[312152501,1705669902181,-1739.34,0.00023561,2]
[312152502,1705669902193,-1153.95,0.00023561,2]
[312152503,1705669902203,-500.0,0.00023561,2]
[312152504,1705669902214,-1444.66,0.00023561,2]
[312152505,1705669902224,-4305.99,0.00023561,2]
[312152506,1705669902233,-500.0,0.00023561,2]
[312152507,1705669902243,-721.93,0.00023561,2]
[312152508,1705669902253,-1568.86,0.00023561,2]
[312152509,1705669902263,-1301.31,0.00023561,2]
[312152510,1705669902273,-500.0,0.00023561,2]
[312152511,1705669902284,-1193.88,0.00023561,2]
[312152512,1705669902295,-855.93,0.00023561,2]
[312152513,1705669902306,-1184.09,0.00023561,2]
[312152514,1705669902316,-1441.39,0.00023561,2]
[312152515,1705669902326,-2315.09,0.00023561,2]
[312152516,1705669902336,-2117.61,0.00023561,2]
[312152517,1705669902346,-980.44,0.00023561,2]
[312152518,1705669902357,-2124.5,0.00023561,2]
[312152519,1705669902367,-3846.66,0.00023561,2]
[312152520,1705669902379,-1637.31,0.00023561,2]
[312152521,1705669902388,-757.52,0.00023561,2]
[312152522,1705669902399,-513.8,0.00023561,2]
[312152523,1705669902409,-500.0,0.00023561,2]